Cogmind - Beta 13 @@@ ROGUE MODE // 2024.03.31 @ 22:02:48 Player: Sixten Result: Self-destructed Performance ------------- Evolutions (2) 1000 Regions Visited (5) 1000 Robots Destroyed (29) 145 Value Destroyed (634) 634 Prototype IDs (23) 460 Alien Tech Used (0) 0 Bonus (300) 300 TOTAL SCORE: 3539 Bonus ------- Aligned with FarCom 300 Cogmind --------- Core Integrity 232/550 Matter 128/300 Energy 100/100 System Corruption 0% Temperature Cool (0) Movement Core (350) Ox6 Location -8/Materials Parts ------- > --- POWER (1) -------- (None) > --- PROPULSION (4) --- (None) > --- UTILITY (4) ------ Large Storage Unit > --- WEAPON (2) ------- (None) > --- INVENTORY (15) --- Ion Engine Light Ion Engine Carbon-fiber Leg Lightpack 2.0 Improved Signal Interpreter Spread Laser Assault Rifle Light Assault Rifle Peak State ------------ > --- POWER ------------ Ion Engine > --- PROPULSION ------- Aluminum Leg Aluminum Leg Aluminum Leg Improved Aluminum Leg > --- UTILITY ---------- Large Storage Unit Improved Sensor Array > --- WEAPON ----------- Grenade Launcher Mini Grenade Launcher > --- INVENTORY -------- Ion Engine Carbon-fiber Leg Lightpack 2.0 Spread Laser Assault Rifle Light Assault Rifle [Rating: 16] Favorites ----------- Power Ion Engine Engine Ion Engine Propulsion Aluminum Leg Leg Aluminum Leg Utility Large Storage Unit Device Improved Sensor Array Storage Large Storage Unit Weapon Assault Rifle Energy Gun Spread Laser Ballistic Gun Assault Rifle Launcher Grenade Launcher Build | -11 -10 -10 -10 -9 -8 ------- Run | Yrd Mat Min Exi Min Mat Slots Evolved 4 | . . . . . 4 Power . | . . . . . . Propulsion 2 | . . . . . 2 Utility 2 | . . . . . 2 Weapon . | . . . . . . Parts Attached 21 | 5 2 . . 3 11 Power 1 | 1 . . . . . Engine 1 | 1 . . . . . Core . | . . . . . . Reactor . | . . . . . . Propulsion 4 | 2 . . . . 2 Treads . | . . . . . . Leg 4 | 2 . . . . 2 Wheel . | . . . . . . Hover . | . . . . . . Flight . | . . . . . . Utility 3 | . 1 . . 1 1 Device 1 | . . . . . 1 Storage 2 | . 1 . . 1 . Processor . | . . . . . . Hackware . | . . . . . . Protection . | . . . . . . Artifact . | . . . . . . Weapon 13 | 2 1 . . 2 8 Energy Gun 2 | . . . . 1 1 Energy Cannon . | . . . . . . Ballistic Gun 5 | 2 . . . . 3 Ballistic Cannon . | . . . . . . Launcher 6 | . 1 . . 1 4 Special Weapon . | . . . . . . Impact Weapon . | . . . . . . Slashing Weapon . | . . . . . . Piercing Weapon . | . . . . . . Special Melee Weapon . | . . . . . . Unidentified Prototypes . | . . . . . . Parts Lost 9 | . . . . . 9 Power 1 | . . . . . 1 Propulsion 4 | . . . . . 4 Utility 1 | . . . . . 1 Weapon 3 | . . . . . 3 Highest Loss Streak 5 | . . . . . 5 To Critical Strikes . | . . . . . . Average Slot Usage (%) 77 | . 73 85 85 85 61 Engine 12 | . 14 14 14 14 5 Leg 27 | . 28 28 28 28 24 Device 1 | . . . . . 4 Storage 10 | . 2 14 14 14 9 Energy Gun 2 | . . . . 7 3 Ballistic Gun 15 | . 23 14 14 14 10 Launcher 7 | . 4 14 14 6 3 Naked Turns . | . . . . . . Heaviest Build 31 | 8 30 30 30 30 31 Greatest Support 43 | 20 20 20 20 20 43 Greatest Overweight (x) 6 | . 1 1 1 1 6 Average Overweight (x) . | . . 1 1 . . Largest Inventory Capacity 15 | 5 15 15 15 15 15 Average Capacity 12 | 5 6 15 15 14 15 Most Carried 13 | 5 5 4 10 13 11 Average Carried 6 | 1 3 4 6 9 8 Final Capacity 15 | 5 15 15 15 15 15 Final Carried 10 | 1 4 4 10 9 10 Class Distribution -------------------- 88% | Mutant 11% | Skirmisher Dominant Class ---------------- Mutant | -10/Materials Mutant | -10/Mines Mutant | -10/Exiles Mutant | -9/Mines Skirmisher | -8/Materials Resources | -11 -10 -10 -10 -9 -8 ----------- Run | Yrd Mat Min Exi Min Mat Matter Collected 529 | 211 62 17 . 108 131 Remotely . | . . . . . . Salvage Created 482 | . 50 . . 101 331 Parts 46 | . 9 . . 13 24 Haulers Intercepted . | . . . . . . Recyclers Shooed 2 | . 2 . . . . Parts Field Recycled . | . . . . . . Retrieved Matter . | . . . . . . Parts Self-Destructed . | . . . . . . Prevented . | . . . . . . Kills | -11 -10 -10 -10 -9 -8 ------- Run | Yrd Mat Min Exi Min Mat Combat Hostiles Destroyed 22 | . 6 . . 6 10 Guns 7 | . . . . 3 4 AOE 15 | . 6 . . 3 6 Classes Destroyed 5 | . 3 . . 1 1 Worker 3 | . 1 . . 1 1 Builder 2 | . . . . . 2 Watcher 2 | . 1 . . . 1 Swarmer 12 | . 6 . . 3 3 Grunt 10 | . . . . 3 7 Best Kill Streak 8 | . 8 . . 4 6 Combat Bots Only 6 | . 6 . . 3 4 Max Kills in Single Turn 4 | . 4 . . 2 2 Gunslinging . | . . . . . . Exploded 3 | . 3 . . 1 2 Melee . | . . . . . . Uniques/NPCs Destroyed . | . . . . . . Combat | -11 -10 -10 -10 -9 -8 -------- Run | Yrd Mat Min Exi Min Mat Hostile Shots Fired 109 | . 26 . . 12 71 Missed 24 | . 12 . . 4 8 Damage Taken 1208 | . 133 . . 117 958 Core 355 | . 23 . . 14 318 Absorbed by Shields . | . . . . . . Core Remaining (%) 92 | 100 . . . 85 . Volleys Fired 51 | . 10 . . 9 32 Largest 2 | . 2 . . 2 2 Hottest 85 | . 50 . . 85 85 Shots Fired 90 | . 19 . . 18 53 Gun 67 | . 14 . . 11 42 Cannon . | . . . . . . Launcher 23 | . 5 . . 7 11 Special . | . . . . . . Kinetic 60 | . 14 . . 9 37 Thermal 7 | . . . . 2 5 Explosive 23 | . 5 . . 7 11 Electromagnetic . | . . . . . . Robot Hit Streak 6 | . 6 . . 6 5 Robot Miss Streak 5 | . 5 . . 2 5 Penetration Max . | . . . . . . Secondary Targets 2 | . . . . . 2 Max Gunslinging Chain 1 | . . . . . 1 Shots Hit Robots 42 | . 7 . . 10 25 Core Hits 54 | . 8 . . 14 32 Critical Kills . | . . . . . . Critical Parts Destroyed . | . . . . . . Critical Strikes . | . . . . . . Melee Attacks . | . . . . . . Impact . | . . . . . . Slashing . | . . . . . . Piercing . | . . . . . . Sneak Attacks . | . . . . . . Combat Hostiles . | . . . . . . Follow-up Attacks . | . . . . . . Damage Inflicted 2215 | . 672 . . 421 1122 Guns 367 | . 39 . . 73 255 Cannons . | . . . . . . Explosions 1844 | . 630 . . 348 866 Melee . | . . . . . . Ramming 4 | . 3 . . . 1 Kinetic 271 | . 39 . . 55 177 Thermal 96 | . . . . 18 78 Explosive 1844 | . 630 . . 348 866 Electromagnetic . | . . . . . . Impact . | . . . . . . Slashing . | . . . . . . Piercing . | . . . . . . Highest Corruption . | . . . . . . Average Corruption . | . . . . . . Corruption Purged . | . . . . . . Corruption Blocked . | . . . . . . Overload Shots . | . . . . . . Overflow Damage 110 | . 55 . . 5 50 Projectiles . | . . . . . . Explosions 110 | . 55 . . 5 50 Melee . | . . . . . . Knockbacks . | . . . . . . Impact . | . . . . . . Kinetic . | . . . . . . Secondary . | . . . . . . Self-Inflicted Damage 67 | . 24 . . 32 11 Shots 4 | . 1 . . 1 2 Rammed . | . . . . . . Targets Rammed 3 | . 1 . . 1 1 Kicked 3 | . 1 . . 1 1 Crushed . | . . . . . . Highest Temperature 69 | . . . . 48 69 Average Temperature 21 | . . . . 16 24 Received Heat Transfer 534 | . . . . 57 477 Siege Activations . | . . . . . . Robots Corrupted . | . . . . . . Combat Hostiles . | . . . . . . Parts Fried . | . . . . . . Impact Corruptions . | . . . . . . Robots Melted . | . . . . . . Combat Hostiles . | . . . . . . Parts Melted 1 | . . . . . 1 Heat Transferred 115 | . . . . 20 95 Parts Sabotaged . | . . . . . . Parts Stolen . | . . . . . . Parts Stripped . | . . . . . . Power Chain Reactions . | . . . . . . Alert | -11 -10 -10 -10 -9 -8 ------- Run | Yrd Mat Min Exi Min Mat Peak Influence 199 | . 184 . . 172 199 Initial . | . . . . . . Average 53 | . 28 . . 98 61 Maximum Alert Level . | . . . . . . Low Security (%) 100 | 100 100 100 . 100 100 Level 1 . | . . . . . . Level 2 . | . . . . . . Level 3 . | . . . . . . Level 4 . | . . . . . . Level 5 . | . . . . . . High Security . | . . . . . . Max Security . | . . . . . . Squads Dispatched 4 | . 1 . . . 3 Investigation 1 | . 1 . . . . Extermination . | . . . . . . Reinforcement 3 | . . . . . 3 Assault . | . . . . . . Garrison . | . . . . . . Intercept . | . . . . . . Searches Triggered . | . . . . . . Construction Impeded . | . . . . . . Haulers Reinforced . | . . . . . . Active Scanning Responses . | . . . . . . Cargo Convoy Interrupts . | . . . . . . Stealth | -11 -10 -10 -10 -9 -8 --------- Run | Yrd Mat Min Exi Min Mat Distress Signals 4 | . 1 . . . 3 Communications Jammed . | . . . . . . Distress Signals . | . . . . . . Times Spotted 39 | . 11 . . 7 21 Peak Tracking Total 7 | . 6 . . 4 7 Tactical Retreats 1 | . . . . . 1 Traps | -11 -10 -10 -10 -9 -8 ------- Run | Yrd Mat Min Exi Min Mat Traps Triggered 1 | . 1 . . . . Indirectly . | . . . . . . Trap Hack Attempts . | . . . . . . Triggered . | . . . . . . Disarmed . | . . . . . . Reprogrammed . | . . . . . . Reused . | . . . . . . Traps Extracted . | . . . . . . Installed . | . . . . . . Triggered . | . . . . . . Machines | -11 -10 -10 -10 -9 -8 ---------- Run | Yrd Mat Min Exi Min Mat Machines Disabled 1 | . . . . . 1 Max in Single Turn 1 | . . . . . 1 Machines Repaired . | . . . . . . Machines Dismantled . | . . . . . . Machines Sabotaged . | . . . . . . Overloaded Fab Kills . | . . . . . . Hacking | -11 -10 -10 -10 -9 -8 --------- Run | Yrd Mat Min Exi Min Mat Machines Accessed 2 | . . . 1 . 1 Terminals 1 | . . . . . 1 Fabricators . | . . . . . . Repair Stations . | . . . . . . Recycling Units . | . . . . . . Scanalyzers . | . . . . . . Garrison Access . | . . . . . . Total Hacks 5 | . . . 1 . 4 Successful 4 | . . . 1 . 3 Failed 1 | . . . . . 1 Catastrophic . | . . . . . . Database Lockouts . | . . . . . . Manual 1 | . . . 1 . . Terminals 4 | . . . . . 4 Fabricators . | . . . . . . Repair Stations . | . . . . . . Recycling Units . | . . . . . . Scanalyzers . | . . . . . . Garrison Access . | . . . . . . Terminal Hacks 4 | . . . 1 . 3 Dispatch Records 1 | . . . . . 1 Reinforcement Status 1 | . . . . . 1 Zone Layout 1 | . . . . . 1 Derelict Proto ID Bank 1 | . . . 1 . . Fabricator Hacks . | . . . . . . Repair Station Hacks . | . . . . . . Recycling Unit Hacks . | . . . . . . Scanalyzer . | . . . . . . Garrison Access Hacks . | . . . . . . Unauthorized Hacks . | . . . . . . Terminals . | . . . . . . Fabricators . | . . . . . . Repair Stations . | . . . . . . Recycling Units . | . . . . . . Scanalyzers . | . . . . . . Garrison Access . | . . . . . . Data Cores Recovered . | . . . . . . Used . | . . . . . . Hacking Detections . | . . . . . . Full Trace Events . | . . . . . . Feedback Events . | . . . . . . Feedback Blocked . | . . . . . . Robot Schematics Acquired . | . . . . . . Robots Built . | . . . . . . Authchips . | . . . . . . Time . | . . . . . . Total Robot Build Rating . | . . . . . . Part Schematics Acquired . | . . . . . . Parts Built . | . . . . . . Authchips . | . . . . . . Time . | . . . . . . Total Part Build Rating . | . . . . . . Parts Repaired . | . . . . . . Time . | . . . . . . Parts Recycled . | . . . . . . Recycled Matter . | . . . . . . Retrieved Matter . | . . . . . . Retrieved Components . | . . . . . . Parts Scanalyzed . | . . . . . . Part Schematics Acquired . | . . . . . . Parts Damaged . | . . . . . . Bothacking | -11 -10 -10 -10 -9 -8 ------------ Run | Yrd Mat Min Exi Min Mat Used RIF Installer . | . . . . . . Robots Hacked . | . . . . . . Non-combat . | . . . . . . Combat . | . . . . . . Robot Hacks Applied . | . . . . . . Relay Couplers Released . | . . . . . . Fabnet Peak Effective % . | . . . . . . Robots Rewired . | . . . . . . Allies Hacked . | . . . . . . Hacks Repelled . | . . . . . . Allies | -11 -10 -10 -10 -9 -8 -------- Run | Yrd Mat Min Exi Min Mat Total Allies . | . . . . . . Largest Group . | . . . . . . Highest-Rated Group . | . . . . . . Highest-Rated Ally . | . . . . . . Total Orders . | . . . . . . Ally Attacks . | . . . . . . Total Damage . | . . . . . . Kills . | . . . . . . Allies Corrupted . | . . . . . . Allies Melted . | . . . . . . Intel | -11 -10 -10 -10 -9 -8 ------- Run | Yrd Mat Min Exi Min Mat Robot Analysis Total . | . . . . . . Derelict Logs Recovered . | . . . . . . Drone Launches . | . . . . . . Drone Recoveries . | . . . . . . Exploration | -11 -10 -10 -10 -9 -8 ------------- Run | Yrd Mat Min Exi Min Mat Turns Passed 2196 | 57 478 156 587 431 487 Spaces Moved 1245 | 51 341 83 308 202 260 Core 23 | 20 . . . . 3 Treads . | . . . . . . Legs 1222 | 31 341 83 308 202 257 Wheels . | . . . . . . Hover . | . . . . . . Flight . | . . . . . . Fastest Speed 50 | 50 120 190 190 120 120 Average Speed 159 | 92 129 190 190 189 143 Slowest Speed 350 | 120 190 190 190 190 350 Overloaded Moves . | . . . . . . Propulsion Burnouts . | . . . . . . Robots Hopped . | . . . . . . Cave-ins Triggered . | . . . . . . Exploration Rate (%) 30 | 5 53 18 62 21 23 Regions Visited 5 Branch Regions 3 Pre-discovered Areas . | . . . . . . Known Exits Taken . | . . . . . . Unknown Exits Taken 5 | 1 1 1 1 1 . Scrap Searched 2 | . . 1 . 1 . Spaces Dug . | . . . . . . Terrain Destroyed 166 | . 32 . . 55 79 Melee . | . . . . . . Projectile . | . . . . . . AOE 166 | . 32 . . 55 79 Terrain Rammed . | . . . . . . Walls Destroyed . | . . . . . . Machines Disabled . | . . . . . . Actions | -11 -10 -10 -10 -9 -8 --------- Run | Yrd Mat Min Exi Min Mat Total 1366 | 61 359 82 310 232 322 Wait 19 | . . . . 6 13 Move 1240 | 50 340 82 307 201 260 Hop . | . . . . . . Pick Up 29 | 6 5 . 3 10 5 Fast Attach . | . . . . . . Attach 12 | 5 2 . . 1 4 Detach . | . . . . . . Swap 9 | . . . . 2 7 Drop 3 | . 1 . . 2 . Fire 51 | . 10 . . 9 32 Melee . | . . . . . . Ram . | . . . . . . Kick 3 | . 1 . . 1 1 Crush . | . . . . . . Escape Stasis . | . . . . . . Rewire . | . . . . . . Trap . | . . . . . . Miscellaneous . | . . . . . . Route ------- -11/Scrapyard -10/Materials (discovered 2 exits: [*Mat] / [*Min]) -10/Mines -10/Exiles (discovered 2 exits: [*Min x2]) -9/Mines -8/Materials History --------- Turn | Location | Event 12 | -11/Scrapyard | Discovered new exit (range 16) 58 | -11/Scrapyard | Entered Materials 284 | -10/Materials | Discovered new exit (range 16) 306 | -10/Materials | Build established: Mutant 477 | -10/Materials | Discovered new exit (range 15) 536 | -10/Materials | Entered Mines 679 | -10/Mines | Deemed a non-threat by the Exiles lab entrance 681 | -10/Mines | Discovered new exit (range 5) 692 | -10/Mines | Entered Exiles 748 | -10/Exiles | Discovered new exit (range 15) 774 | -10/Exiles | Met 8R-AWN 818 | -10/Exiles | Met EX-HEX 901 | -10/Exiles | Met EX-BIN 943 | -10/Exiles | Aligned with FarCom system 945 | -10/Exiles | Given EX-Vault access code 1006 | -10/Exiles | Opened EX-Vault 1029 | -10/Exiles | Found Lightpack 2.0 1032 | -10/Exiles | Found Field Lobotomy Kit 1040 | -10/Exiles | Found AWS/Thermal 1083 | -10/Exiles | Warned to stay clear of 0b10 Research branches 1086 | -10/Exiles | Exiles lab attacked by MAIN.C 1243 | -10/Exiles | Discovered new exit (range 14) 1279 | -10/Exiles | Stole three prototypes: Lightpack 2.0, AWS/Thermal, Field Lobotomy Kit 1279 | -10/Exiles | Entered Mines 1619 | -9/Mines | Discovered new exit (range 11) 1710 | -9/Mines | Entered Materials 1710 | -8/Materials | Evolved 4 slots: Propulsion x2, Utility x2 2042 | -8/Materials | Lost 5 parts (1p3n1u) 2195 | -8/Materials | Core integrity fell below 50% 2197 | -8/Materials | Self-destructed Last Messages --------------- dispatching Specialist reinforcements to area. K-01 Serf cleans the Terminal. W-25 Informer sends out distress signal. Grenade Launcher destroyed. Terminal disabled. Imp. Aluminum Leg destroyed. G-50 Soldier destroyed. W-25 Informer sends out distress signal. Lgt. Assault Rifle destroyed. Destroyed Lgt. Nuclear Core. G-47 Trooper destroyed. The unstable cave ceiling collapses. Critical hit (Burn: +37). Slug penetrates Wall. Mni. Grenade Launcher destroyed. Penetrated by Slug. The unstable cave ceiling collapses. U-05 Engineer lays Concrete. The unstable cave ceiling collapses. U-05 Engineer lays Concrete. Map ----- +----------------------------------------------------+ | ############ # ##????????????????????????????? | | ! ??????????????????????????? | | * ! ??????????????????????????? | | %= ! ??????????????????????????? | | ### ###### # ???????????????????????????? | | ??# #??????? #????????????????????????????? | | ??# #?????????? ##????????????????????????????? | | ??# #??????????????????????????????????????????? | | ??# #????????????##????????????????????????????? | | ??# #???????????? ?????????????????????????? | | ??# #???????????? #????????????????????????? | | ??# =*#???????????? #????????????????????????? | | ??#%= #???????????? uh#????????????????????????? | | ###[ !#????????????? u #????????????????????????? | | ==#=* #????????????? ####?????????????????????? | | ==# #????########## #?????????????????????? | | # = #???? ###????????????????????? | | # #???? % # #????????????????????? | | = #????? ##????????????????????? | | = #?????? #????????????????????? | | = !#???????? ???????????w?????????? | | [ #?????????? %g ##########????????????? | | #????????????# #????????????? | | #????????????# #????????????? | | #?????????????# x/ #????????????? | | ############### #@ #????????????? | | x # #????????????? | | ############+## # #????????????? | | "" #????????? # ### #????????????? | | """ #???????""? # #?#############????????????? | | """ #???????"?" [# #??????????????????????????? | | """ #?????????" # #??????????????????????????? | | "" #????????"" # #??????????????????????????? | | #???????? # #??????????????????????????? | | #????????###### #???????h??????????????????? | | ### ??????????????# ???????????????????????????? | | ??# ??????????????# ???????????????????????????? | | ??# ??????????????? ???????????????????????????? | | ??# ??????????????w ???????????????????????????? | | ??# ??????????????? ???????????????????????????? | | ??# ?????????????H? ???????????????????????????? | | ??? ??????????????? ???????????????????????????? | | ?????????????????????????????????????????????????? | | ?????????????????????????????????????????????????? | | ?????????????????????????????????????????????????? | | ?????????????????????????????????????????????????? | | ?????????????????????????????????????????????????? | | ?????????????????????????????????????????????????? | | ?????????????????????????????????????????????????? | | ?????????????????????????????????????????????????? | +----------------------------------------------------+ Best States ------------- Heat Dissipation 31 Energy Generation 10 Energy Capacity 250 Matter Stores 300 Matter Capacity 300 Sight Range 16 Robot Scan Range 15 Terrain Scan Density 10 Evasion (%) 55 Item Schematics ----------------- None Robot Schematics ------------------ None Fabricated ------------ Nothing Alien Tech Used ----------------- None Achievements -------------- None Challenges ------------ None Game ------ Seed AntimissileMomentumScanner Manual? 0 Play Time 00:17:35 Cumulative 5.2 hours Start 2024.03.31 @ 11:24:52 End 2024.03.31 @ 22:02:48 Sessions 5 Manual Loads 0 Difficulty Rogue Special Mode None Game No. 26 Rogue 26 Adventurer 0 Explorer 0 Win Type - Total 0 Types 0/0/0/0/0/0/0/0/0 Lore% 8 Gallery% 7 Achievement% 9 Wizard Run 0 Options --------- Layout 1 ASCII 0 Keyboard 0 Movement Arrows Keybinds 0 Fullscreen 1 Font 24/Smallcaps Map View 50x35 Zoom Use 0% Tactical HUD 0 Map Filters NONE Filters NONE Steam 1 RUN: 01b164b1-47af-4628-8c74-56317da2724c